bitfinex-derivatives/quotes_SOLF0:USTF0_20250131
["timestamp","ask_amount","ask_price","bid_price","bid_amount"]
[1738299227909,4.2418,235.76,235.71,4.2425]
[1738299228511,1.35845078,235.77,235.72,7.40839852]
[1738299228812,4.2416,235.78,235.72,11.65079852]
[1738299229009,0.02979844,235.77,235.72,11.65079852]
[1738299229310,4.27139844,235.77,235.72,11.65079852]
[1738299230210,4.27139844,235.77,235.72,4.2424]
[1738299235010,4.2425,235.73,235.68,7.40839852]
[1738299235317,7.40839852,235.7,235.62,11.07013266]
[1738299235613,7.40839852,235.68,235.62,4.2442]
[1738299235809,7.43748373,235.68,235.6,7.40839852]
[1738299236611,7.40839852,235.66,235.58,7.40839852]
[1738299237114,7.40839852,235.66,235.58,11.65319852]
[1738299238015,7.40839852,235.64,235.58,4.2448]
[1738299238917,7.40839852,235.64,235.56,7.40839852]
[1738299239114,7.40839852,235.64,235.57,4.2451]
[1738299239314,0.03009662,235.62,235.56,7.40839852]
[1738299239516,0.03009662,235.62,235.56,11.65369852]
[1738299239815,0.03009662,235.62,235.56,7.40839852]
[1738299240320,0.03009662,235.62,235.58,11.65339852]
[1738299240513,0.03009662,235.62,235.58,7.40839852]
[1738299240714,0.03009662,235.62,235.6,7.40839852]
[1738299241413,0.03009662,235.62,235.6,11.65299852]
[1738299244920,0.03009662,235.62,235.61,4.2445]
[1738299262937,9.662e-05,235.62,235.61,4.2445]
[1738299263140,1.3775,235.72,235.6,7.40839852]
[1738299263141,1.3775,235.72,235.69,4.2428]
[1738299263436,1.3775,235.72,235.65,7.40839852]
[1738299263637,8.78589852,235.72,235.65,7.40839852]
[1738299264134,8.78589852,235.72,235.68,4.2432]
[1738299264437,0.0287976,235.71,235.68,4.2432]
[1738299264638,0.0287976,235.71,235.7,4.2428]
[1738299270544,0.0287976,235.71,235.67,4.2432]
[1738299270843,0.0287976,235.71,235.66,0.02827217]
[1738299271441,0.0287976,235.71,235.66,4.27167217]
[1738299272641,0.0287976,235.71,235.66,0.02827217]
[1738299272842,0.0287976,235.71,235.67,4.2433]
[1738299274446,11.65129852,235.7,235.66,0.02827217]
[1738299274845,13.02129852,235.7,235.66,0.02827217]
[1738299275446,13.02129852,235.7,235.52,19.14021599]
[1738299275447,11.65159852,235.68,235.57,7.40839852]
[1738299275642,7.40839852,235.65,235.57,7.40839852]
[1738299275839,7.40839852,235.63,235.55,7.40839852]
[1738299276438,7.40839852,235.63,235.57,4.2452]
[1738299276642,7.43775605,235.61,235.57,4.2452]
[1738299277341,7.43775605,235.61,235.53,7.40839852]
[1738299277546,11.68225605,235.61,235.53,11.65409852]
[1738299278445,7.43775605,235.61,235.53,7.40839852]
[1738299278743,7.43775605,235.61,235.55,4.2455]
[1738299279338,0.02935753,235.61,235.57,4.2451]
[1738299280848,0.02935753,235.61,235.58,4.245]
[1738299281450,0.02935753,235.61,235.59,4.2448]
[1738299281653,0.02935753,235.61,235.55,7.40839852]
[1738299282349,0.02935753,235.61,235.58,4.245]
[1738299282843,0.02935753,235.61,235.55,7.40839852]
[1738299283042,0.02935753,235.61,235.59,4.2448]
[1738299283246,7.40839852,235.65,235.59,4.2448]
[1738299283446,0.02878241,235.62,235.59,4.2448]
[1738299283946,0.02878241,235.62,235.57,11.65339852]
[1738299284148,0.02878241,235.62,235.57,4.245]
[1738299284645,0.02878241,235.62,235.58,4.2449]
[1738299285952,0.02878241,235.62,235.56,4.2452]
[1738299286148,0.02878241,235.62,235.55,7.40839852]
[1738299286953,7.40839852,235.61,235.55,4.2455]
[1738299287151,8.74429852,235.61,235.55,4.2455]
[1738299288048,8.74429852,235.61,235.56,4.2453]
[1738299289153,8.74429852,235.61,235.55,11.65389852]
[1738299290048,8.74429852,235.61,235.56,4.2453]
[1738299290553,7.40839852,235.58,235.51,7.40839852]
[1738299290753,7.40839852,235.58,235.53,4.2459]
[1738299290952,0.03263431,235.57,235.53,4.2459]
[1738299292054,0.03263431,235.57,235.51,7.40839852]
[1738299292255,0.03263431,235.57,235.51,11.65449852]
[1738299292756,0.03263431,235.57,235.51,4.2461]
[1738299293757,4.27783431,235.57,235.5,4.2464]
[1738299293953,4.27783431,235.57,235.49,7.40839852]
[1738299294752,0.03263431,235.57,235.49,7.40839852]
[1738299294959,0.03263431,235.57,235.52,4.2461]
[1738299297656,0.03263431,235.57,235.53,4.2459]
[1738299300659,7.40839852,235.56,235.53,4.2459]
[1738299301557,7.40839852,235.54,235.45,7.40839852]
[1738299301766,7.40839852,235.5,235.43,7.40839852]
[1738299302250,7.40839852,235.5,235.45,4.2473]
[1738299302452,7.40839852,235.5,235.43,7.40839852]
[1738299302756,0.0269565,235.52,235.45,7.40839852]
[1738299302962,7.40839852,235.54,235.5,4.2463]
[1738299303158,0.02737009,235.51,235.5,4.2463]
[1738299307865,0.02737009,235.51,235.49,4.2466]
[1738299309469,0.02737009,235.51,235.45,7.40839852]
[1738299309663,0.02737009,235.51,235.43,7.40839852]
[1738299309968,7.40839852,235.5,235.43,7.40839852]
[1738299310165,7.40839852,235.5,235.45,4.2473]
[1738299310369,0.02737009,235.51,235.45,7.40839852]
[1738299310763,7.43576861,235.51,235.45,7.40839852]
[1738299310959,0.02737009,235.51,235.48,4.2468]
[1738299311165,7.43576861,235.51,235.43,7.40839852]
[1738299312068,7.43576861,235.51,235.47,4.247]
[1738299312266,0.02737009,235.51,235.47,7.40839852]
[1738299312469,0.02737009,235.51,235.49,7.40839852]
[1738299313169,0.02737009,235.51,235.5,4.2464]
[1738299315671,8.74429852,235.61,235.55,4.2455]
[1738299315970,12.98879852,235.61,235.53,7.40839852]
[1738299316170,12.98879852,235.61,235.54,4.2457]
[1738299316669,0.03064993,235.6,235.55,0.02891687]
[1738299317571,0.03064993,235.6,235.55,4.27441687]
[1738299318572,0.03064993,235.6,235.56,4.2453]
[1738299318965,0.03064993,235.6,235.55,7.43731539]
[1738299319273,0.03064993,235.6,235.55,0.02891687]
[1738299320171,4.27534993,235.6,235.55,4.27441687]
[1738299320371,4.27534993,235.6,235.55,0.02891687]
[1738299321672,0.03064993,235.6,235.55,0.02891687]
[1738299322074,0.03064993,235.6,235.55,4.27441687]
[1738299323172,4.27524993,235.6,235.55,4.27441687]
[1738299323775,4.27524993,235.6,235.55,0.02891687]
[1738299323975,4.2449,235.59,235.55,0.02891687]
[1738299324572,0.03064993,235.6,235.58,7.40839852]
[1738299325180,0.03064993,235.6,235.55,0.02891687]
[1738299325372,7.40839852,235.59,235.55,0.02891687]
[1738299325677,0.03064993,235.6,235.55,0.02891687]
[1738299327078,0.03064993,235.6,235.56,7.40839852]
[1738299327272,0.03064993,235.6,235.58,4.245]
[1738299327470,0.03064993,235.6,235.58,11.65339852]
[1738299328879,0.03064993,235.6,235.59,4.2448]
[1738299335785,0.03064993,235.6,235.57,4.245]
[1738299335985,0.03064993,235.6,235.56,7.40839852]
[1738299336383,0.03064993,235.6,235.56,11.65369852]
[1738299337685,0.03064993,235.6,235.57,4.2452]
[1738299343887,0.03064993,235.6,235.58,7.40839852]
[1738299344097,0.03064993,235.6,235.59,4.2448]
[1738299352504,1.3824,235.7,235.58,7.40839852]
[1738299352799,4.243,235.69,235.65,7.40839852]
[1738299353805,4.27263088,235.69,235.65,7.43978155]
[1738299354005,4.27263088,235.69,235.65,0.03138303]
[1738299354604,4.2432,235.68,235.65,0.03138303]
[1738299356704,0.02963088,235.69,235.65,7.43978155]
[1738299357209,0.02963088,235.69,235.66,4.2435]
[1738299357805,0.02963088,235.69,235.65,7.43978155]
[1738299358105,0.02963088,235.69,235.68,4.2432]
[1738299361309,0.02963088,235.69,235.67,11.65179852]
[1738299365412,0.02963088,235.69,235.68,4.2432]
[1738299369911,0.02963088,235.69,235.67,7.40839852]
[1738299371015,0.02963088,235.69,235.68,4.2432]
[1738299374211,1.3572,235.79,235.74,7.40839852]
[1738299374414,1.3572,235.79,235.76,7.40839852]
[1738299374712,1.3572,235.79,235.76,11.65009852]
[1738299375712,0.02914594,235.8,235.76,7.40839852]
[1738299375910,0.02914594,235.8,235.78,7.40839852]
[1738299376323,0.02914594,235.8,235.79,4.2412]
[1738299377017,0.02914594,235.8,235.78,7.40839852]
[1738299377018,2.8827,235.89,235.84,4.2402]
[1738299377219,2.8827,235.89,235.87,7.40839852]
[1738299377423,1.4432,235.89,235.87,7.40839852]
[1738299379122,0.0326324,235.9,235.87,11.64809852]
[1738299379526,0.0326324,235.9,235.89,7.40839852]
[1738299382027,4.2719324,235.9,235.87,7.40839852]
[1738299382228,7.40839852,235.89,235.86,0.02737189]
[1738299382429,8.84009852,235.89,235.86,0.02737189]
[1738299383126,4.2397,235.88,235.86,0.02737189]
[1738299384733,7.40839852,235.87,235.79,7.40839852]
[1738299385736,7.40839852,235.87,235.81,0.02867438]
[1738299387138,4.2401,235.85,235.81,0.02867438]
[1738299387837,4.2401,235.85,235.81,7.4370729]
[1738299388234,10.16689852,235.89,235.81,7.4370729]
[1738299388440,4.2404,235.84,235.81,0.02867438]
[1738299388939,4.2407,235.82,235.81,0.02867438]
[1738299390341,4.2407,235.82,235.77,7.40839852]
[1738299390838,4.2407,235.82,235.64,195.0]
[1738299390839,7.40839852,235.83,235.75,7.40839852]
[1738299391341,0.03152188,235.81,235.77,0.03192301]
[1738299391536,4.27252188,235.81,235.77,0.03192301]
[1738299393646,4.27252188,235.81,235.77,7.44032153]
[1738299396440,0.03152188,235.81,235.77,7.44032153]
[1738299396644,0.03152188,235.81,235.79,11.64959852]
[1738299397640,0.03152188,235.81,235.79,7.40839852]
[1738299397848,0.03152188,235.81,235.8,4.241]
[1738299411960,0.03152188,235.81,235.79,7.40839852]
[1738299412259,0.03152188,235.81,235.77,7.44032153]
[1738299412662,0.03152188,235.81,235.77,0.03192301]
[1738299414462,0.03152188,235.81,235.77,7.44032153]
[1738299414961,0.03152188,235.81,235.79,7.40839852]
[1738299415467,0.03152188,235.81,235.8,4.241]
[1738299420959,0.03152188,235.81,235.77,0.03192301]
[1738299421158,0.03152188,235.81,235.68,7.40839852]
[1738299421159,7.40839852,235.79,235.68,7.40839852]
[1738299421361,7.40839852,235.7,235.67,6.62726993]
[1738299421567,4.2434,235.67,235.66,129.26596504]
[1738299421864,4.2434,235.67,235.66,115.34766504]
[1738299424069,4.2434,235.67,235.64,0.0322679]
[1738299425867,0.02854582,235.69,235.64,0.0322679]
[1738299426169,4.2436,235.66,235.64,0.0322679]
[1738299427573,0.02854582,235.69,235.64,0.0322679]
[1738299428466,0.02854582,235.69,235.55,1.7352424]
[1738299429070,4.2434,235.67,235.59,4.2448]
[1738299429269,0.02854582,235.69,235.59,4.2448]
[1738299429774,4.2436,235.66,235.59,4.2448]
[1738299430464,4.2436,235.66,235.55,1.7352424]
[1738299430465,2.66854582,235.69,235.61,11.67367374]
[1738299430666,2.64,235.69,235.61,11.67367374]
[1738299430868,0.02966093,235.67,235.61,11.67367374]
[1738299431271,0.02966093,235.67,235.58,11.67367374]
[1738299431466,2.64,235.69,235.61,4.2444]
[1738299431668,0.02985611,235.65,235.58,11.67367374]
[1738299432168,0.02985611,235.65,235.63,4.2441]
[1738299432875,0.02985611,235.65,235.59,4.2447]
[1738299433077,11.67367374,235.68,235.55,11.67367374]
[1738299433272,0.02798795,235.64,235.5,1.4086]
[1738299434174,11.67367374,235.62,235.5,1.4086]
[1738299434777,0.02681429,235.58,235.5,1.4086]
[1738299436278,0.02681429,235.58,235.53,4.2459]
[1738299436976,0.02681429,235.58,235.49,11.67367374]
[1738299437178,0.02681429,235.58,235.55,4.2455]
[1738299438071,0.02681429,235.58,235.56,4.2453]
[1738299443980,0.02681429,235.58,235.54,4.2456]
[1738299449184,0.02681429,235.58,235.52,7.47525325]
[1738299450086,0.02681429,235.58,235.53,4.2457]
[1738299450886,0.02681429,235.58,235.52,7.47525325]
[1738299451786,0.02681429,235.58,235.55,7.47525325]
[1738299452185,0.02681429,235.58,235.56,4.2453]
[1738299452582,0.02681429,235.58,235.55,7.47525325]
[1738299452786,0.02681429,235.58,235.57,4.2452]
[1738299455085,0.02681429,235.58,235.57,11.72045325]
[1738299455285,4.2441,235.64,235.59,4.2447]
[1738299455589,11.71895325,235.65,235.57,7.47525325]
[1738299455788,7.47525325,235.65,235.57,7.47525325]
[1738299455989,7.47525325,235.65,235.6,4.2445]
[1738299456386,7.50555965,235.65,235.6,0.0290708]
[1738299456587,4.2439,235.64,235.6,0.0290708]
[1738299457789,0.0303064,235.65,235.6,0.0290708]
[1738299459193,4.2741064,235.65,235.61,4.2444]
[1738299460895,4.2741064,235.65,235.6,4.2736708]
[1738299463587,4.2741064,235.65,235.6,0.0290708]
[1738299464391,4.2741064,235.65,235.61,4.2445]
[1738299464599,0.0303064,235.65,235.63,7.47525325]
[1738299465399,0.0303064,235.65,235.63,11.71935325]
[1738299466095,0.0303064,235.65,235.63,7.47525325]
[1738299467398,4.2432,235.68,235.63,7.47525325]
[1738299468497,4.27552945,235.68,235.63,7.47525325]
[1738299471901,4.27552945,235.68,235.65,7.47525325]
[1738299473794,4.2435,235.67,235.65,7.47525325]
[1738299473999,4.2435,235.67,235.63,11.71935325]
[1738299474299,4.2435,235.67,235.63,7.47525325]
[1738299480914,4.27552945,235.68,235.63,11.71915325]
[1738299481414,4.27552945,235.68,235.63,7.47525325]
[1738299482216,4.27552945,235.68,235.64,4.2439]
[1738299486415,4.2437,235.65,235.62,1.388]
[1738299486620,7.47525325,235.67,235.62,1.388]
[1738299487315,7.47525325,235.67,235.61,2.736]
[1738299487917,0.03232945,235.68,235.61,10.21125325]
[1738299488612,4.2436,235.66,235.61,10.21125325]
[1738299488816,0.03232945,235.68,235.61,10.21125325]
[1738299490122,4.2436,235.66,235.61,14.45565325]
[1738299491828,4.27562945,235.68,235.63,11.71935325]
[1738299492123,0.03232945,235.68,235.65,7.47525325]
[1738299494218,0.03232945,235.68,235.67,4.2434]
[1738299495521,0.03232945,235.68,235.65,7.50524303]
[1738299495720,0.03232945,235.68,235.65,0.02998978]
[1738299499028,4.2434,235.67,235.65,0.02998978]
[1738299500530,0.03232945,235.68,235.65,0.02998978]
[1738299502421,0.03232945,235.68,235.65,7.50524303]
[1738299502920,0.03232945,235.68,235.67,7.47525325]
[1738299503928,0.03232945,235.68,235.67,11.71865325]
[1738299513333,8.32346564,235.79,235.67,7.47525325]
[1738299513535,8.32346564,235.79,235.73,7.47525325]
[1738299513536,0.84821239,235.79,235.73,7.47525325]
[1738299514032,5.08961239,235.79,235.73,7.47525325]
[1738299514233,5.08961239,235.79,235.73,11.71735325]
[1738299514439,5.08961239,235.79,235.73,7.47525325]
[1738299514641,0.03214007,235.78,235.74,0.02683434]
[1738299515740,0.03214007,235.78,235.77,11.71685325]
[1738299517837,4.2403,235.85,235.77,7.47525325]
[1738299518034,4.2403,235.85,235.79,7.47525325]
[1738299518933,4.2403,235.85,235.79,11.71645325]
[1738299519131,0.0297465,235.84,235.8,0.0278877]
[1738299520543,4.2701465,235.84,235.8,0.0278877]
[1738299522041,0.0297465,235.84,235.8,4.2688877]
[1738299526344,0.0297465,235.84,235.8,0.0278877]
[1738299526541,7.47525325,235.83,235.8,0.0278877]
[1738299526745,10.80051111,235.99,235.82,7.47525325]
[1738299526948,4.2381,235.97,235.91,11.71425325]
[1738299527147,4.2381,235.97,235.89,7.47525325]
[1738299527744,4.2381,235.97,235.91,0.03254386]
[1738299528044,0.03050415,235.95,235.91,7.50779711]
[1738299528444,0.03050415,235.95,235.93,11.71385325]
[1738299530041,23.62986125,236.02,235.95,4.2382]
[1738299530239,23.62986125,236.02,235.97,7.47525325]
[1738299530653,77.50418419,236.05,235.97,7.47525325]
[1738299530654,4.2371,236.03,235.97,7.47525325]
[1738299531152,0.03077026,236.02,235.98,0.02954982]
[1738299535249,4.2373,236.01,235.98,0.02954982]
[1738299538560,0.03077026,236.02,235.98,0.02954982]
[1738299538759,0.03077026,236.02,235.99,7.47525325]
[1738299539057,0.03077026,236.02,235.98,0.02954982]
[1738299539453,4.26797026,236.02,235.98,0.02954982]
[1738299540259,0.03077026,236.02,235.98,0.02954982]
[1738299540454,7.47525325,236.01,235.98,0.02954982]
[1738299541762,4.2376,235.99,235.98,0.02954982]
[1738299542162,0.03077026,236.02,235.98,0.02954982]
[1738299542358,4.2374,236.01,235.98,0.02954982]
[1738299544267,4.2376,235.99,235.98,0.02954982]
[1738299552869,4.2375,236.0,235.98,0.02954982]
[1738299554676,4.2376,235.99,235.98,0.02954982]
[1738299557982,7.47525325,236.0,235.9,7.47525325]
[1738299558172,0.03077026,236.02,235.88,4.2395]
[1738299558173,4.2388,235.93,235.88,4.2395]
[1738299558380,4.2388,235.93,235.89,7.47525325]
[1738299558578,4.2385,235.95,235.91,7.47525325]
[1738299559180,4.26724315,235.95,235.91,7.50266941]
[1738299559678,4.26724315,235.95,235.91,11.74166941]
[1738299559874,0.02874315,235.95,235.93,7.47525325]
[1738299560781,0.02874315,235.95,235.94,4.2385]
[1738299568283,4.26714315,235.95,235.93,7.47525325]
[1738299568581,4.26714315,235.95,235.92,4.1126]
[1738299568884,0.02874315,235.95,235.92,4.1126]
[1738299569183,0.02874315,235.95,235.92,2.7724]
[1738299569384,0.02874315,235.95,235.91,0.02741616]
[1738299569682,4.2387,235.93,235.91,0.02741616]
[1738299572082,0.02874315,235.95,235.91,11.74176941]
[1738299572284,0.02874315,235.95,235.93,7.47525325]
[1738299575091,0.02874315,235.95,235.94,4.2385]
[1738299576094,0.02874315,235.95,235.93,11.71395325]
[1738299576290,0.02874315,235.95,235.93,7.47525325]
[1738299576891,0.02874315,235.95,235.92,2.8257]
[1738299577990,0.02874315,235.95,235.93,7.47525325]
[1738299583900,0.02874315,235.95,235.93,11.71395325]
[1738299592707,0.02874315,235.95,235.91,0.02741616]
[1738299592907,7.5039964,235.95,235.91,0.02741616]
[1738299593504,4.2389,235.92,235.91,0.02741616]
[1738299595506,0.02874315,235.95,235.91,0.02741616]
[1738299597811,4.26714315,235.95,235.91,0.02741616]
[1738299598313,0.02874315,235.95,235.92,4.2388]
[1738299598513,0.02874315,235.95,235.93,7.47525325]
[1738299599014,0.02874315,235.95,235.93,11.71395325]
[1738299600215,0.02874315,235.95,235.94,4.2385]
[1738299602118,0.02874315,235.95,235.93,11.71395325]
[1738299602313,0.02874315,235.95,235.93,7.47525325]
[1738299604015,0.02874315,235.95,235.92,2.8088]
[1738299604219,4.2387,235.93,235.91,0.02741616]
[1738299608521,4.2389,235.92,235.91,0.02741616]
[1738299612625,4.2386,235.94,235.91,0.02741616]
[1738299613022,0.02874315,235.95,235.91,7.50266941]
[1738299613920,4.26714315,235.95,235.91,7.50266941]
[1738299614121,0.02874315,235.95,235.91,7.50266941]
[1738299614424,0.02874315,235.95,235.91,0.02741616]
[1738299615226,4.2387,235.94,235.91,0.02741616]
[1738299616722,0.02874315,235.95,235.91,0.02741616]
[1738299616924,4.26714315,235.95,235.91,0.02741616]
[1738299617524,0.02874315,235.95,235.91,7.50266941]
[1738299617726,0.02874315,235.95,235.93,7.47525325]
[1738299621128,4.2378,235.99,235.95,4.2383]
[1738299621329,4.2378,235.99,235.95,11.71355325]
[1738299621827,4.2374,236.01,235.96,4.2381]
[1738299622023,7.47525325,236.02,235.96,4.2381]
[1738299622227,0.02689528,236.01,235.96,4.26873577]
[1738299622530,0.02689528,236.01,235.97,7.47525325]
[1738299623129,4.2375,236.0,235.97,7.47525325]
[1738299623329,0.02689528,236.01,235.96,0.03063577]
[1738299623528,7.47525325,236.0,235.96,0.03063577]
[1738299624131,4.2379,235.98,235.96,0.03063577]
[1738299626827,7.47525325,236.0,235.96,0.03063577]
[1738299626828,11.71285325,236.0,235.96,0.03063577]
[1738299627034,7.47525325,236.0,235.96,0.03063577]
[1738299627531,4.238,235.97,235.96,0.03063577]
[1738299649754,0.02689528,236.01,235.96,0.03063577]
[1738299651154,4.2375,236.0,235.96,0.03063577]
[1738299651860,0.02689528,236.01,235.96,0.03063577]
[1738299652162,4.2376,235.99,235.96,0.03063577]
[1738299653161,0.02689528,236.01,235.96,0.03063577]
[1738299653364,4.238,235.97,235.96,0.03063577]
[1738299656565,7.47525325,236.0,235.96,0.03063577]
[1738299656863,4.2378,235.98,235.96,0.03063577]
[1738299658068,4.2376,235.99,235.96,0.03063577]
[1738299658565,4.2375,236.0,235.96,4.26883577]
[1738299660465,4.2375,236.0,235.96,0.03063577]
[1738299660666,4.2376,235.99,235.96,0.03063577]
[1738299662865,4.238,235.97,235.96,0.03063577]
[1738299665467,4.2392,235.91,235.85,7.47525325]
[1738299665659,7.47525325,235.93,235.85,7.47525325]
[1738299666064,4.2395,235.89,235.85,7.47525325]
[1738299666261,7.47525325,235.93,235.85,7.47525325]
[1738299666658,4.2395,235.89,235.87,0.02869615]
[1738299667267,0.0320058,235.91,235.87,7.5039494]
[1738299667866,4.2711058,235.91,235.87,7.5039494]
[1738299672068,0.0320058,235.91,235.87,0.02869615]
[1738299674072,4.2395,235.89,235.87,0.02869615]
[1738299675970,4.2712058,235.91,235.87,0.02869615]
[1738299676271,0.0320058,235.91,235.87,0.02869615]
[1738299677572,4.2393,235.9,235.87,0.02869615]
[1738299677771,0.0320058,235.91,235.87,0.02869615]
[1738299678870,7.47525325,235.89,235.87,0.02869615]
[1738299679668,7.47525325,235.89,235.71,4.1296]
[1738299679669,4.2408,235.82,235.77,7.47525325]
[1738299680771,4.27119504,235.82,235.77,7.50326839]
[1738299682175,0.03039504,235.82,235.79,11.71635325]
[1738299683171,0.03039504,235.82,235.79,7.47525325]
[1738299684074,0.03039504,235.82,235.77,11.74466839]
[1738299684673,2.64,235.92,235.81,7.47525325]
[1738299684878,2.64,235.92,235.86,7.47525325]
[1738299685080,2.64,235.92,235.88,7.47525325]
[1738299685874,0.03007872,235.92,235.88,7.5066227]
[1738299687269,0.03007872,235.92,235.9,7.47525325]
[1738299687970,0.03007872,235.92,235.9,11.71445325]
[1738299688574,0.03007872,235.92,235.91,4.2391]
[1738299689076,4.238,235.98,235.92,4.2388]
[1738299689378,4.238,235.98,235.92,11.71405325]
[1738299690278,0.03012787,235.97,235.92,11.71405325]
[1738299690473,0.03012787,235.97,235.93,4.2387]
[1738299690773,0.03012787,235.97,235.94,7.47525325]
[1738299690973,0.03012787,235.97,235.96,7.47525325]
[1738299691180,7.47525325,236.04,235.96,7.47525325]
[1738299691371,0.0324076,235.99,235.96,7.47525325]
[1738299691572,0.0324076,235.99,235.97,4.2379]
[1738299692579,0.0324076,235.99,235.98,11.71305325]
[1738299692780,4.2369,236.04,235.98,7.47525325]
[1738299692975,4.2369,236.04,235.94,2.8709]
[1738299692976,4.2369,236.04,236.0,7.47525325]
[1738299694080,4.26364807,236.04,236.0,7.50601721]
[1738299695777,0.02674807,236.04,236.0,7.50601721]
[1738299695981,0.02674807,236.04,236.02,7.47525325]
[1738299696677,0.02674807,236.04,236.0,7.50601721]
[1738299698081,0.02674807,236.04,236.01,4.2371]
[1738299698382,0.02674807,236.04,236.0,7.50601721]
[1738299698778,0.02674807,236.04,236.02,4.2369]
[1738299698984,0.02674807,236.04,236.02,11.71215325]
[1738299701390,0.02674807,236.04,236.02,7.47525325]
[1738299701984,0.02674807,236.04,236.03,4.2369]
[1738299707691,4.2358,236.09,236.04,4.2367]
[1738299707986,7.47525325,236.18,236.07,7.47525325]
[1738299708193,7.47525325,236.18,236.1,7.47525325]
[1738299708493,4.2349,236.15,236.11,4.2354]
[1738299708902,0.02755953,236.15,236.11,4.2634129]
[1738299709394,0.02755953,236.15,236.11,0.0280129]
[1738299709694,4.26235953,236.15,236.11,0.0280129]
[1738299710595,0.02755953,236.15,236.11,4.2633129]
[1738299712196,4.26235953,236.15,236.11,4.2633129]
[1738299712694,4.26235953,236.15,236.11,0.0280129]
[1738299713292,4.2353,236.12,236.11,0.0280129]
[1738299714798,11.71055325,236.12,236.11,0.0280129]
[1738299715094,4.2353,236.12,236.11,0.0280129]
[1738299717502,0.02755953,236.15,236.11,0.0280129]
[1738299717703,4.235,236.14,236.11,0.0280129]
[1738299718105,0.02755953,236.15,236.11,0.0280129]
[1738299719903,4.2351,236.13,236.11,0.0280129]
[1738299720407,0.02755953,236.15,236.11,0.0280129]
[1738299721309,4.235,236.14,236.11,0.0280129]
[1738299721509,0.02755953,236.15,236.11,0.0280129]
[1738299722007,11.71055325,236.12,236.11,0.0280129]
[1738299725312,4.2367,236.05,236.02,7.47525325]
[1738299725808,7.47525325,236.08,236.0,7.47525325]
[1738299726008,4.2364,236.07,236.02,7.47525325]
[1738299726315,7.47525325,236.08,236.02,7.47525325]
[1738299726604,4.2366,236.05,236.02,7.50665186]
[1738299728311,0.02956611,236.07,236.02,7.50665186]
[1738299728612,0.02956611,236.07,236.06,7.47525325]
[1738299730416,0.02956611,236.07,236.06,11.71165325]
[1738299732713,7.47525325,236.16,236.06,7.47525325]
[1738299733010,4.2347,236.16,236.13,7.47525325]
[1738299735117,0.02990159,236.17,236.12,0.02811957]
[1738299735718,4.235,236.14,236.12,0.02811957]
[1738299737018,4.2351,236.13,236.12,0.02811957]
[1738299737717,0.02990159,236.17,236.12,0.02811957]
[1738299739616,0.02990159,236.17,236.13,7.47525325]
[1738299740515,0.02990159,236.17,236.13,11.71035325]
[1738299740917,0.02990159,236.17,236.15,7.47525325]
[1738299741221,0.02990159,236.17,236.16,4.2346]
[1738299742820,0.02990159,236.17,236.15,7.47525325]
[1738299742821,7.47525325,236.26,236.2,4.2338]
[1738299743123,7.47525325,236.26,236.2,7.47525325]
[1738299743318,7.47525325,236.26,236.18,11.70935325]
[1738299743319,4.2335,236.23,236.18,11.70935325]
[1738299743621,7.47525325,236.24,236.16,7.47525325]
[1738299743820,0.03201308,236.23,236.18,0.02971273]
[1738299744923,4.2339,236.21,236.18,0.02971273]
[1738299745625,4.26551308,236.23,236.18,7.50496598]
[1738299746021,0.03201308,236.23,236.2,7.47525325]
[1738299746925,4.26531308,236.23,236.2,7.47525325]
[1738299747126,4.26531308,236.23,236.18,11.73916598]
[1738299747925,0.03201308,236.23,236.2,11.70905325]
[1738299750230,0.03201308,236.23,236.22,7.47525325]
[1738299751227,4.2326,236.27,236.22,11.70875325]
[1738299751929,4.2328,236.26,236.22,11.70875325]
[1738299752329,4.26132053,236.26,236.22,11.73567318]
[1738299752529,4.26132053,236.26,236.24,7.47525325]
[1738299753531,0.02852053,236.26,236.24,7.47525325]
[1738299753725,0.02852053,236.26,236.22,7.50217318]
[1738299754123,0.02852053,236.26,236.22,11.73567318]
[1738299754330,0.02852053,236.26,236.24,7.47525325]
[1738299754733,0.02852053,236.26,236.25,4.233]
[1738299755932,0.02852053,236.26,236.24,7.47525325]
[1738299756231,0.02852053,236.26,236.22,0.02691993]
[1738299756432,4.2331,236.25,236.22,0.02691993]
[1738299756634,0.02852053,236.26,236.22,0.02691993]
[1738299757335,0.02852053,236.26,236.22,4.26041993]
[1738299759937,4.26132053,236.26,236.22,4.26041993]
[1738299760835,4.26132053,236.26,236.23,7.47525325]
[1738299761137,0.02852053,236.26,236.23,11.70845325]
[1738299763933,4.26152053,236.26,236.22,0.02691993]
[1738299764237,7.47525325,236.25,236.22,0.02691993]
[1738299764439,7.47525325,236.23,236.22,0.02691993]
[1738299765236,11.70855325,236.23,236.22,0.02691993]
[1738299773351,4.2347,236.16,236.11,7.47525325]
[1738299774142,4.2347,236.16,236.11,11.71075325]